[Event "36th European Club Cup 2021"]
[Site "Struga"]
[Date "2021.09.22"]
[Round "5.43"]
[White "Heimann, Andreas"]
[Black "Haria, Ravi"]
[Result "1/2-1/2"]
[ECO "D38"]
[WhiteElo "2587"]
[BlackElo "2465"]
[Annotator "ChessBase"]
[PlyCount "27"]
[EventDate "2021.09.18"]
[EventType "team-tourn"]
[EventCountry "MKD"]
[SourceTitle "playchess.com"]
[Source "ChessBase"]
[SourceQuality "1"]
[TimeControl "40/5400+30:1800+30"]

1. d4 {[%emt 0:00:53]} e6 {[%emt 0:00:23]} 2. Nf3 {[%emt 0:00:20]} Nf6 {
[%emt 0:00:08]} 3. c4 {[%emt 0:00:03]} d5 {[%emt 0:00:06]} 4. Nc3 {[%emt 0:00:
07]} Bb4 {[%emt 0:00:23]} 5. cxd5 {[%emt 0:02:32]} exd5 {[%emt 0:00:34]} 6. Bg5
{[%emt 0:00:05]} h6 {[%emt 0:00:14]} 7. Bxf6 {[%emt 0:00:46]} Qxf6 {[%emt 0:00:
06]} 8. Qb3 {[%emt 0:00:02]} Qb6 {[%emt 0:07:36]} 9. a3 {[%emt 0:05:18]} Ba5 {
[%emt 0:01:26]} 10. Qc2 {[%emt 0:11:18]} Bf5 {[%emt 0:03:13]} 11. Qa4+ {
[%emt 0:00:05]} Bd7 {[%emt 0:00:10]} 12. Qc2 {[%emt 0:00:04]} Bf5 {[%emt 0:00:
08]} 13. Qa4+ {[%emt 0:00:03]} Bd7 {[%emt 0:00:06]} 14. Qc2 {[%emt 0:00:03]}
1/2-1/2

[Event "36th European Club Cup 2021"]
[Site "Struga"]
[Date "2021.09.22"]
[Round "5.44"]
[White "O`Donnell, Conor"]
[Black "Cvitan, Ognjen"]
[Result "1/2-1/2"]
[ECO "E35"]
[WhiteElo "2303"]
[BlackElo "2470"]
[Annotator "ChessBase"]
[PlyCount "60"]
[EventDate "2021.09.18"]
[EventType "team-tourn"]
[EventCountry "MKD"]
[SourceTitle "playchess.com"]
[Source "ChessBase"]
[SourceQuality "1"]
[TimeControl "40/5400+30:1800+30"]

1. d4 {[%emt 0:00:03]} Nf6 {[%emt 0:03:17]} 2. c4 {[%emt 0:00:12]} e6 {[%emt 0:
00:24]} 3. Nc3 {[%emt 0:00:19]} Bb4 {[%emt 0:01:09]} 4. Qc2 {[%emt 0:00:27]} d5
{[%emt 0:00:25]} 5. cxd5 {[%emt 0:00:26]} exd5 {[%emt 0:00:09]} 6. Bg5 {
[%emt 0:00:36]} h6 {[%emt 0:00:21]} 7. Bh4 {[%emt 0:00:10]} O-O {[%emt 0:06:25]
} 8. e3 {[%emt 0:01:07]} Be6 {[%emt 0:01:12]} 9. a3 {[%emt 1:31:40]} Be7 {
[%emt 0:00:26]} 10. Nf3 {[%emt 0:00:00]} Nbd7 {[%emt 0:01:57]} 11. Bd3 {
[%emt 0:00:00]} c5 {[%emt 0:02:04]} 12. dxc5 {[%emt 0:00:00]} Nxc5 {[%emt 0:00:
41]} 13. Nd4 {[%emt 0:00:00]} Rc8 {[%emt 0:01:16]} 14. f3 {[%emt 0:00:00]} Nfd7
{[%emt 0:12:17]} 15. Bxe7 {[%emt 0:00:00]} Qxe7 {[%emt 0:03:02]} 16. f4 {
[%emt 0:00:00]} Nf6 {[%emt 0:03:10]} 17. Qd2 {[%emt 0:00:00]} Bd7 {[%emt 0:02:
56]} 18. O-O {[%emt 0:00:00]} Rfe8 {[%emt 0:02:06]} 19. Rfe1 {[%emt 0:00:00]}
Qd6 {[%emt 0:06:54]} 20. Rad1 {[%emt 0:00:00]} Qb6 {[%emt 0:03:52]} 21. Bb1 {
[%emt 0:00:00]} a5 {[%emt 0:06:45]} 22. h3 {[%emt 0:00:00]} h5 {[%emt 0:02:05]}
23. Qf2 {[%emt 0:00:00]} Na4 {[%emt 0:04:27]} 24. Nxa4 {[%emt 0:00:00]} Bxa4 {
[%emt 0:00:06]} 25. Rc1 {[%emt 0:00:00]} Bd7 {[%emt 0:00:23]} 26. Qd2 {[%emt 0:
00:00]} Kf8 {[%emt 0:00:51]} 27. Rxc8 {[%emt 0:00:00]} Rxc8 {[%emt 0:00:17]}
28. Rc1 {[%emt 0:00:00]} Rxc1+ {[%emt 0:00:17]} 29. Qxc1 {[%emt 0:00:00]} Qd6 {
[%emt 0:00:13]} 30. Qc3 {[%emt 0:00:00]} b6 {[%emt 0:00:16]} 1/2-1/2

[Event "36th European Club Cup 2021"]
[Site "Struga"]
[Date "2021.09.22"]
[Round "5.47"]
[White "Haag, Gregor"]
[Black "Pein, Jonathan"]
[Result "1/2-1/2"]
[ECO "D38"]
[WhiteElo "2370"]
[BlackElo "2254"]
[Annotator "NA"]
[PlyCount "70"]
[EventDate "2021.09.18"]
[EventType "team-tourn"]
[EventCountry "MKD"]
[SourceTitle "playchess.com"]
[Source "ChessBase"]
[SourceQuality "1"]
[TimeControl "40/5400+30:1800+30"]

1. d4 {[%emt 0:00:03]} d5 {[%emt 0:00:04]} 2. c4 {[%emt 0:00:13]} e6 {[%emt 0:
00:07]} 3. Nf3 {[%emt 0:00:24]} Nf6 {[%emt 0:00:12]} 4. Nc3 {[%emt 0:00:29]}
Nbd7 {[%emt 0:00:14]} 5. Bg5 {[%emt 0:01:19]} Bb4 {[%emt 0:00:25]} 6. e3 {
[%emt 0:08:15]} c5 {[%emt 0:00:09]} 7. cxd5 {[%emt 0:08:06]} exd5 {[%emt 0:00:
06]} 8. Bd3 {[%emt 0:05:25]} Qa5 {[%emt 0:00:24]} 9. Qc2 {[%emt 0:00:30]} O-O {
[%emt 0:00:22]} 10. O-O {[%emt 0:00:47]} c4 {[%emt 0:00:04]} 11. Bf5 {[%emt 0:
00:48]} Re8 {[%emt 0:00:26]} 12. Nd2 {[%emt 0:03:16]} g6 {[%emt 0:00:23]} 13.
Bxd7 {[%emt 0:01:01]} Nxd7 {[%emt 0:00:07]} 14. h4 {[%emt 0:00:53]} Nb6 {
[%emt 0:11:14]} 15. f3 {[%emt 0:09:03]} Bd7 {[%emt 0:07:39]} 16. e4 {[%emt 0:
14:30]} Rac8 {[%emt 0:03:10]} 17. Rac1 {[%emt 0:20:04]} Bf8 {[%emt 0:09:02]}
18. exd5 {[%emt 0:08:00]} Nxd5 {[%emt 0:14:16]} 19. Nde4 {[%emt 0:04:16]} Bg7 {
[%emt 0:02:28]} 20. Qd2 {[%emt 0:05:30]} Rc6 {[%emt 0:05:53]} 21. Nc5 {[%emt 0:
04:09]} Bxd4+ {[%emt 0:05:32]} 22. Qxd4 {[%emt 0:00:07]} Qxc5 {[%emt 0:00:06]}
23. Qxc5 {[%emt 0:01:11]} Rxc5 {[%emt 0:00:00]} 24. Ne4 {[%emt 0:00:37]} Rc6 {
[%emt 0:01:00]} 25. Rfd1 {[%emt 0:00:50]} Be6 {[%emt 0:02:00]} 26. Rd4 {
[%emt 0:01:13]} f5 {[%emt 0:02:05]} 27. Rxd5 {[%emt 0:02:14]} Bxd5 {[%emt 0:10:
16]} 28. Nf6+ {[%emt 0:00:05]} Rxf6 {[%emt 0:00:05]} 29. Bxf6 {[%emt 0:00:03]}
Kf7 {[%emt 0:04:51]} 30. Bc3 {[%emt 0:00:08]} b5 {[%emt 0:10:22]} 31. Rd1 {
[%emt 0:00:52]} Rd8 {[%emt 0:02:14]} 32. Bb4 {[%emt 0:00:52]} Rd7 {[%emt 0:01:
35]} 33. Kf2 {[%emt 0:00:26]} Ke6 {[%emt 0:03:17]} 34. Re1+ {[%emt 0:00:27]}
Kf7 {[%emt 0:00:51]} 35. Rd1 {[%emt 0:00:04]} Ke6 {[%emt 0:02:09]} 1/2-1/2

[Event "36th European Club Cup 2021"]
[Site "Struga"]
[Date "2021.09.22"]
[Round "5.48"]
[White "Carroll, Peter"]
[Black "Heinz, Timothee"]
[Result "0-1"]
[ECO "B15"]
[WhiteElo "2059"]
[BlackElo "2394"]
[Annotator "NA"]
[PlyCount "78"]
[EventDate "2021.09.18"]
[EventType "team-tourn"]
[EventCountry "MKD"]
[SourceTitle "playchess.com"]
[Source "ChessBase"]
[SourceQuality "1"]
[TimeControl "40/5400+30:1800+30"]

1. e4 {[%emt 0:01:47]} c6 {[%emt 0:00:09]} 2. d4 {[%emt 0:00:06]} d5 {[%emt 0:
00:06]} 3. Nc3 {[%emt 0:00:36]} dxe4 {[%emt 0:00:12]} 4. Nxe4 {[%emt 0:00:06]}
Nf6 {[%emt 0:00:06]} 5. Nxf6+ {[%emt 0:00:06]} exf6 {[%emt 0:00:07]} 6. Bc4 {
[%emt 0:05:28]} Bd6 {[%emt 0:00:23]} 7. Qe2+ {[%emt 0:02:38]} Be7 {[%emt 0:00:
28]} 8. Nf3 {[%emt 0:00:32]} O-O {[%emt 0:00:26]} 9. O-O {[%emt 0:00:07]} Bg4 {
[%emt 0:08:08]} 10. c3 {[%emt 0:01:09]} Nd7 {[%emt 0:00:50]} 11. h3 {[%emt 0:
02:54]} Bh5 {[%emt 0:02:59]} 12. Bf4 {[%emt 0:06:10]} Nb6 {[%emt 0:02:15]} 13.
Bb3 {[%emt 0:00:50]} Re8 {[%emt 0:02:22]} 14. Qd3 {[%emt 0:04:54]} Qd7 {
[%emt 0:16:52]} 15. Bh2 {[%emt 0:05:40]} c5 {[%emt 0:08:15]} 16. d5 {[%emt 0:
15:08]} Bg6 {[%emt 0:04:07]} 17. Qd2 {[%emt 0:03:04]} Be4 {[%emt 0:05:15]} 18.
d6 {[%emt 0:11:34]} Bxf3 {[%emt 0:02:18]} 19. gxf3 {[%emt 0:00:53]} Bf8 {
[%emt 0:01:18]} 20. Kg2 {[%emt 0:02:32]} Rad8 {[%emt 0:03:04]} 21. Rad1 {
[%emt 0:01:35]} g6 {[%emt 0:09:38]} 22. Qf4 {[%emt 0:05:21]} f5 {[%emt 0:02:06]
} 23. Rd2 {[%emt 0:01:16]} Bg7 {[%emt 0:01:25]} 24. Rfd1 {[%emt 0:11:07]} Be5 {
[%emt 0:02:18]} 25. Qh4 {[%emt 0:00:01]} Bxh2 {[%emt 0:00:17]} 26. Kxh2 {
[%emt 0:00:02]} Kg7 {[%emt 0:04:15]} 27. a4 {[%emt 0:04:36]} a5 {[%emt 0:00:53]
} 28. Bc2 {[%emt 0:00:46]} Qe6 {[%emt 0:03:11]} 29. Kg2 {[%emt 0:05:15]} Rd7 {
[%emt 0:09:49]} 30. b4 {[%emt 0:03:34]} Qc4 {[%emt 0:00:28]} 31. Qxc4 {[%emt 0:
01:16]} Nxc4 {[%emt 0:00:02]} 32. Rd5 {[%emt 0:04:28]} Re2 {[%emt 0:00:19]} 33.
Bd3 {[%emt 0:00:57]} Ne3+ {[%emt 0:00:06]} 34. Kg1 {[%emt 0:00:24]} Nxd5 {
[%emt 0:00:55]} 35. Bxe2 {[%emt 0:00:13]} Nxc3 {[%emt 0:00:02]} 36. Rd2 {
[%emt 0:00:43]} Nxe2+ {[%emt 0:00:15]} 37. Rxe2 {[%emt 0:00:02]} cxb4 {[%emt 0:
00:34]} 38. Re7 {[%emt 0:00:06]} Rxd6 {[%emt 0:00:07]} 39. Rxb7 {[%emt 0:00:06]
} Rd1+ {[%emt 0:00:07]} 0-1

[Event "36th European Club Cup 2021"]
[Site "Struga"]
[Date "2021.09.22"]
[Round "5.50"]
[White "Seo, Jung Min"]
[Black "Roeder, Matthias"]
[Result "0-1"]
[ECO "B25"]
[WhiteElo "2469"]
[BlackElo "2372"]
[Annotator "ChessBase"]
[PlyCount "112"]
[EventDate "2021.09.18"]
[EventType "team-tourn"]
[EventCountry "MKD"]
[SourceTitle "playchess.com"]
[Source "ChessBase"]
[SourceQuality "1"]
[TimeControl "40/5400+30:1800+30"]

1. e4 {[%emt 0:00:02]} c5 {[%emt 0:00:10]} 2. Nc3 {[%emt 0:00:12]} Nc6 {
[%emt 0:02:26]} 3. g3 {[%emt 0:00:42]} g6 {[%emt 0:00:13]} 4. Bg2 {[%emt 0:00:
06]} Bg7 {[%emt 0:00:08]} 5. Nge2 {[%emt 0:00:04]} Rb8 {[%emt 0:07:39]} 6. a4 {
[%emt 0:07:07]} d6 {[%emt 0:12:59]} 7. d3 {[%emt 0:00:54]} a6 {[%emt 0:06:48]}
8. Be3 {[%emt 0:02:37]} Nf6 {[%emt 0:01:18]} 9. h3 {[%emt 0:02:12]} b5 {
[%emt 0:03:49]} 10. axb5 {[%emt 0:01:25]} axb5 {[%emt 0:00:08]} 11. f4 {
[%emt 0:01:42]} b4 {[%emt 0:06:19]} 12. Na4 {[%emt 0:05:57]} Bd7 {[%emt 0:06:
07]} 13. c3 {[%emt 0:12:33]} O-O {[%emt 0:05:15]} 14. d4 {[%emt 0:01:53]} Na5 {
[%emt 0:03:20]} 15. dxc5 {[%emt 0:11:54]} Bc6 {[%emt 0:07:51]} 16. Nb6 {
[%emt 0:02:43]} Nb7 {[%emt 0:04:51]} 17. cxb4 {[%emt 0:03:04]} dxc5 {[%emt 0:
01:50]} 18. bxc5 {[%emt 0:02:59]} Nxe4 {[%emt 0:00:31]} 19. Qxd8 {[%emt 0:20:
32]} Rfxd8 {[%emt 0:00:10]} 20. O-O {[%emt 0:01:34]} Nbxc5 {[%emt 0:00:59]} 21.
Nc4 {[%emt 0:01:28]} Bb5 {[%emt 0:05:30]} 22. Rac1 {[%emt 0:01:13]} f5 {
[%emt 0:00:06]} 23. Bxc5 {[%emt 0:04:47]} Nxc5 {[%emt 0:00:06]} 24. Bf3 {
[%emt 0:01:57]} Nd3 {[%emt 0:00:25]} 25. Rc2 {[%emt 0:00:05]} Nb4 {[%emt 0:00:
09]} 26. Rcc1 {[%emt 0:00:02]} Rd3 {[%emt 0:06:26]} 27. Kg2 {[%emt 0:03:12]} e6
{[%emt 0:01:47]} 28. Ng1 {[%emt 0:02:55]} Bd4 {[%emt 0:07:49]} 29. Be2 {
[%emt 0:01:11]} Bxg1 {[%emt 0:00:18]} 30. Rxg1 {[%emt 0:00:18]} Bxc4 {[%emt 0:
00:46]} 31. Rxc4 {[%emt 0:00:03]} Rd2 {[%emt 0:00:15]} 32. Kf2 {[%emt 0:01:48]}
Nd5 {[%emt 0:00:52]} 33. b4 {[%emt 0:00:23]} Rxb4 {[%emt 0:01:16]} 34. Rxb4 {
[%emt 0:00:01]} Nxb4 {[%emt 0:00:09]} 35. Rd1 {[%emt 0:00:40]} Rxd1 {[%emt 0:
01:00]} 36. Bxd1 {[%emt 0:00:01]} Nd5 {[%emt 0:00:31]} 37. Kf3 {[%emt 0:00:36]}
h6 {[%emt 0:00:15]} 38. g4 {[%emt 0:01:35]} Kf7 {[%emt 0:00:24]} 39. Ba4 {
[%emt 0:00:36]} Kf6 {[%emt 0:00:12]} 40. Bb3 {[%emt 0:00:00]} Ne7 {[%emt 0:00:
00]} 41. Ba4 {[%emt 0:01:41]} e5 {[%emt 0:02:37]} 42. fxe5+ {[%emt 0:00:04]}
Kxe5 {[%emt 0:00:08]} 43. gxf5 {[%emt 0:00:01]} gxf5 {[%emt 0:00:55]} 44. Bb5 {
[%emt 0:00:55]} Kf6 {[%emt 0:01:00]} 45. Ba4 {[%emt 0:01:26]} Ng6 {[%emt 0:00:
09]} 46. Bb5 {[%emt 0:00:11]} Kg5 {[%emt 0:00:03]} 47. Bf1 {[%emt 0:00:55]} h5
{[%emt 0:03:28]} 48. Ke3 {[%emt 0:00:58]} h4 {[%emt 0:00:50]} 49. Kf3 {[%emt 0:
01:15]} Kf6 {[%emt 0:00:45]} 50. Ba6 {[%emt 0:00:35]} Ke5 {[%emt 0:00:06]} 51.
Bb5 {[%emt 0:01:20]} Nf4 {[%emt 0:01:08]} 52. Bf1 {[%emt 0:00:02]} Ne6 {
[%emt 0:00:16]} 53. Ba6 {[%emt 0:00:16]} Ng5+ {[%emt 0:02:14]} 54. Kg2 {
[%emt 0:00:05]} Ke4 {[%emt 0:05:12]} 55. Bc8 {[%emt 0:01:28]} f4 {[%emt 0:00:
19]} 56. Kf2 {[%emt 0:00:04]} f3 {[%emt 0:00:07]} 0-1

[Event "36th European Club Cup 2021"]
[Site "Struga"]
[Date "2021.09.22"]
[Round "5.51"]
[White "Boidman, Yuri"]
[Black "Lokander, Martin"]
[Result "0-1"]
[ECO "C73"]
[WhiteElo "2318"]
[BlackElo "2452"]
[Annotator "ChessBase"]
[PlyCount "68"]
[EventDate "2021.09.18"]
[EventType "team-tourn"]
[EventCountry "MKD"]
[SourceTitle "playchess.com"]
[Source "ChessBase"]
[SourceQuality "1"]
[TimeControl "40/5400+30:1800+30"]

1. e4 {[%emt 0:00:06]} e5 {[%emt 0:00:10]} 2. Nf3 {[%emt 0:00:10]} Nc6 {
[%emt 0:00:07]} 3. Bb5 {[%emt 0:00:09]} a6 {[%emt 0:01:30]} 4. Ba4 {[%emt 0:00:
12]} d6 {[%emt 0:00:05]} 5. Bxc6+ {[%emt 0:00:36]} bxc6 {[%emt 0:00:40]} 6. d4
{[%emt 0:00:39]} f6 {[%emt 0:01:13]} 7. O-O {[%emt 0:00:15]} Ne7 {[%emt 0:02:
09]} 8. Nbd2 {[%emt 0:00:57]} Ng6 {[%emt 0:01:58]} 9. Nb3 {[%emt 0:00:47]} Be7
{[%emt 0:00:46]} 10. Na5 {[%emt 0:00:28]} Qd7 {[%emt 0:02:59]} 11. Qd3 {
[%emt 0:02:05]} d5 {[%emt 0:01:42]} 12. c4 {[%emt 0:08:57]} f5 {[%emt 0:00:44]}
13. Nxe5 {[%emt 0:13:20]} Nxe5 {[%emt 0:01:33]} 14. dxe5 {[%emt 0:00:11]} fxe4
{[%emt 0:00:04]} 15. Qg3 {[%emt 0:04:01]} O-O {[%emt 0:00:43]} 16. Bh6 {
[%emt 0:03:28]} Rf7 {[%emt 0:00:46]} 17. cxd5 {[%emt 0:04:59]} cxd5 {[%emt 0:
01:43]} 18. Rac1 {[%emt 0:00:47]} c5 {[%emt 0:03:20]} 19. b4 {[%emt 0:14:40]}
Qa4 {[%emt 0:13:11]} 20. f3 {[%emt 0:05:30]} Be6 {[%emt 0:15:03]} 21. fxe4 {
[%emt 0:02:19]} Raf8 {[%emt 0:00:03]} 22. Rf6 {[%emt 0:06:46]} Qd7 {[%emt 0:08:
19]} 23. Rxf7 {[%emt 0:06:24]} Rxf7 {[%emt 0:00:04]} 24. bxc5 {[%emt 0:00:57]}
dxe4 {[%emt 0:09:27]} 25. c6 {[%emt 0:02:33]} Bc5+ {[%emt 0:04:30]} 26. Kh1 {
[%emt 0:00:22]} Qc7 {[%emt 0:01:50]} 27. Nb7 {[%emt 0:02:56]} Bf2 {[%emt 0:12:
52]} 28. Qg5 {[%emt 0:00:10]} Rf5 {[%emt 0:00:36]} 29. Qd8+ {[%emt 0:01:21]}
Qxd8 {[%emt 0:00:02]} 30. Nxd8 {[%emt 0:00:05]} Bc8 {[%emt 0:00:01]} 31. Bd2 {
[%emt 0:03:26]} e3 {[%emt 0:00:43]} 32. Bc3 {[%emt 0:00:43]} e2 {[%emt 0:00:08]
} 33. g3 {[%emt 0:04:23]} Bb6 {[%emt 0:01:40]} 34. Kg2 {[%emt 0:05:47]} Rf2+ {
[%emt 0:00:10]} 0-1

[Event "36th European Club Cup 2021"]
[Site "Struga"]
[Date "2021.09.22"]
[Round "5.52"]
[White "Ertan, Can"]
[Black "Hautot, Stephane"]
[Result "1-0"]
[ECO "B07"]
[WhiteElo "2384"]
[BlackElo "2329"]
[Annotator "NA"]
[PlyCount "39"]
[EventDate "2021.09.18"]
[EventType "team-tourn"]
[EventCountry "MKD"]
[SourceTitle "playchess.com"]
[Source "ChessBase"]
[SourceQuality "1"]
[TimeControl "40/5400+30:1800+30"]

1. e4 {[%emt 0:00:02]} d6 {[%emt 0:00:49]} 2. d4 {[%emt 0:00:04]} Nf6 {[%emt 0:
00:03]} 3. Nc3 {[%emt 0:00:04]} Nbd7 {[%emt 0:00:03]} 4. f4 {[%emt 0:00:04]} e5
{[%emt 0:00:03]} 5. Nf3 {[%emt 0:00:03]} exd4 {[%emt 0:00:14]} 6. Qxd4 {
[%emt 0:00:06]} c6 {[%emt 0:00:04]} 7. Be3 {[%emt 0:00:06]} d5 {[%emt 0:00:41]}
8. e5 {[%emt 0:00:06]} Ng4 {[%emt 0:00:22]} 9. Bg1 {[%emt 0:01:55]} Nh6 {
[%emt 0:00:14]} 10. O-O-O {[%emt 0:01:53]} Qa5 {[%emt 0:03:44]} 11. g4 {
[%emt 0:12:07]} Nxg4 {[%emt 0:22:46]} 12. f5 {[%emt 0:02:21]} Nh6 {[%emt 0:23:
17]} 13. e6 {[%emt 0:18:39]} fxe6 {[%emt 0:01:24]} 14. fxe6 {[%emt 0:00:04]}
Nf6 {[%emt 0:00:27]} 15. Bh3 {[%emt 0:04:25]} Qb4 {[%emt 0:07:31]} 16. Qd2 {
[%emt 0:03:24]} Be7 {[%emt 0:08:41]} 17. Bd4 {[%emt 0:03:26]} Ne4 {[%emt 0:12:
55]} 18. Nxe4 {[%emt 0:04:33]} dxe4 {[%emt 0:00:04]} 19. Bxg7 {[%emt 0:00:14]}
Rg8 {[%emt 0:00:10]} 20. Qxh6 {[%emt 0:00:12]} 1-0

[Event "36th European Club Cup 2021"]
[Site "Struga"]
[Date "2021.09.22"]
[Round "5.53"]
[White "Dardha, Arben"]
[Black "Arman, Deniz"]
[Result "1/2-1/2"]
[ECO "B33"]
[WhiteElo "2253"]
[BlackElo "2336"]
[Annotator "NA"]
[PlyCount "66"]
[EventDate "2021.09.18"]
[EventType "team-tourn"]
[EventCountry "MKD"]
[SourceTitle "playchess.com"]
[Source "ChessBase"]
[SourceQuality "1"]
[TimeControl "40/5400+30:1800+30"]

1. e4 {[%emt 0:02:22]} c5 {[%emt 0:00:52]} 2. Nf3 {[%emt 0:00:06]} Nc6 {
[%emt 0:00:08]} 3. d4 {[%emt 0:00:09]} cxd4 {[%emt 0:00:09]} 4. Nxd4 {[%emt 0:
00:07]} Nf6 {[%emt 0:00:25]} 5. Nc3 {[%emt 0:00:05]} e5 {[%emt 0:00:09]} 6.
Ndb5 {[%emt 0:00:09]} d6 {[%emt 0:00:08]} 7. Bg5 {[%emt 0:00:11]} a6 {[%emt 0:
00:06]} 8. Na3 {[%emt 0:00:04]} b5 {[%emt 0:00:05]} 9. Nd5 {[%emt 0:00:10]} Be7
{[%emt 0:00:11]} 10. Bxf6 {[%emt 0:00:12]} Bxf6 {[%emt 0:00:06]} 11. c4 {
[%emt 0:00:48]} b4 {[%emt 0:02:57]} 12. Nc2 {[%emt 0:00:05]} O-O {[%emt 0:02:
06]} 13. g3 {[%emt 0:00:27]} Be6 {[%emt 0:02:55]} 14. h4 {[%emt 0:03:32]} a5 {
[%emt 0:04:57]} 15. b3 {[%emt 0:01:20]} a4 {[%emt 0:14:52]} 16. Bg2 {[%emt 0:
06:03]} axb3 {[%emt 0:04:37]} 17. axb3 {[%emt 0:00:38]} Rxa1 {[%emt 0:00:35]}
18. Nxf6+ {[%emt 0:12:17]} gxf6 {[%emt 0:09:24]} 19. Qxa1 {[%emt 0:00:11]} Qa5
{[%emt 0:01:28]} 20. O-O {[%emt 0:12:28]} Ra8 {[%emt 0:01:43]} 21. Qd1 {
[%emt 0:02:11]} Qc5 {[%emt 0:00:45]} 22. Kh2 {[%emt 0:05:49]} Ra2 {[%emt 0:12:
37]} 23. Qb1 {[%emt 0:03:00]} Qa7 {[%emt 0:06:16]} 24. Bh3 {[%emt 0:11:16]}
Bxh3 {[%emt 0:13:19]} 25. Kxh3 {[%emt 0:00:05]} Nd4 {[%emt 0:11:28]} 26. Nxd4 {
[%emt 0:05:26]} exd4 {[%emt 0:00:04]} 27. Qd3 {[%emt 0:01:08]} Ra1 {[%emt 0:00:
16]} 28. Rd1 {[%emt 0:07:52]} Rxd1 {[%emt 0:01:02]} 29. Qxd1 {[%emt 0:00:29]}
Kg7 {[%emt 0:07:42]} 30. Kg2 {[%emt 0:02:09]} Qa2 {[%emt 0:02:10]} 31. Qg4+ {
[%emt 0:11:41]} Kf8 {[%emt 0:00:06]} 32. Qc8+ {[%emt 0:00:18]} Kg7 {[%emt 0:00:
04]} 33. Qg4+ {[%emt 0:00:39]} Kf8 {[%emt 0:00:04]} 1/2-1/2

[Event "36th European Club Cup 2021"]
[Site "Struga"]
[Date "2021.09.22"]
[Round "5.54"]
[White "Thorn, Eric"]
[Black "Jeitz, Christian"]
[Result "1-0"]
[ECO "B31"]
[WhiteElo "2292"]
[BlackElo "2231"]
[Annotator "NA"]
[PlyCount "79"]
[EventDate "2021.09.18"]
[EventType "team-tourn"]
[EventCountry "MKD"]
[SourceTitle "playchess.com"]
[Source "ChessBase"]
[SourceQuality "1"]
[TimeControl "40/5400+30:1800+30"]

1. e4 {[%emt 0:00:06]} c5 {[%emt 0:00:05]} 2. Nf3 {[%emt 0:00:10]} Nc6 {
[%emt 0:00:07]} 3. Bb5 {[%emt 0:00:11]} g6 {[%emt 0:00:34]} 4. Bxc6 {[%emt 0:
00:09]} dxc6 {[%emt 0:00:09]} 5. d3 {[%emt 0:00:06]} Bg7 {[%emt 0:00:16]} 6. h3
{[%emt 0:00:10]} e5 {[%emt 0:00:20]} 7. Be3 {[%emt 0:00:18]} Qe7 {[%emt 0:00:
10]} 8. Qd2 {[%emt 0:00:56]} Nf6 {[%emt 0:00:31]} 9. Nc3 {[%emt 0:00:18]} Nd7 {
[%emt 0:01:02]} 10. Bh6 {[%emt 0:00:30]} Bxh6 {[%emt 0:00:44]} 11. Qxh6 {
[%emt 0:00:15]} f6 {[%emt 0:00:19]} 12. Nd2 {[%emt 0:00:10]} Nf8 {[%emt 0:04:
18]} 13. f4 {[%emt 0:00:37]} exf4 {[%emt 0:01:16]} 14. Qxf4 {[%emt 0:00:08]}
Be6 {[%emt 0:01:04]} 15. O-O {[%emt 0:01:28]} Nd7 {[%emt 0:01:07]} 16. Rae1 {
[%emt 0:06:03]} O-O {[%emt 0:09:32]} 17. Qc7 {[%emt 0:11:38]} Rab8 {[%emt 0:13:
10]} 18. Nd5 {[%emt 0:16:48]} Qf7 {[%emt 0:18:49]} 19. Nf4 {[%emt 0:00:56]}
Rfe8 {[%emt 0:02:45]} 20. Rf2 {[%emt 0:06:30]} Nf8 {[%emt 0:11:33]} 21. Nxe6 {
[%emt 0:06:43]} Qxe6 {[%emt 0:00:52]} 22. Ref1 {[%emt 0:10:02]} Nd7 {[%emt 0:
00:17]} 23. Nc4 {[%emt 0:01:32]} Rec8 {[%emt 0:01:54]} 24. Qg3 {[%emt 0:01:10]}
Rf8 {[%emt 0:01:07]} 25. Ne3 {[%emt 0:11:42]} Ne5 {[%emt 0:08:37]} 26. Ng4 {
[%emt 0:02:32]} Nxg4 {[%emt 0:04:09]} 27. hxg4 {[%emt 0:00:02]} Rbe8 {[%emt 0:
03:11]} 28. g5 {[%emt 0:02:25]} f5 {[%emt 0:03:56]} 29. exf5 {[%emt 0:00:12]}
Rxf5 {[%emt 0:00:06]} 30. Rxf5 {[%emt 0:01:07]} gxf5 {[%emt 0:00:03]} 31. Qf2 {
[%emt 0:00:36]} Rf8 {[%emt 0:00:53]} 32. Qxc5 {[%emt 0:01:18]} Qxa2 {[%emt 0:
00:53]} 33. b3 {[%emt 0:02:47]} Qb2 {[%emt 0:03:30]} 34. Kh2 {[%emt 0:08:35]}
Rf7 {[%emt 0:03:28]} 35. d4 {[%emt 0:02:13]} b6 {[%emt 0:00:52]} 36. Qc4 {
[%emt 0:00:05]} Kg7 {[%emt 0:00:24]} 37. Re1 {[%emt 0:03:21]} a5 {[%emt 0:02:
09]} 38. Qxc6 {[%emt 0:00:28]} Rf8 {[%emt 0:04:28]} 39. Re7+ {[%emt 0:00:39]}
Kg8 {[%emt 0:00:29]} 40. Qe6+ {[%emt 0:00:00]} 1-0

[Event "36th European Club Cup 2021"]
[Site "Struga"]
[Date "2021.09.22"]
[Round "5.55"]
[White "Uruci, Endrit"]
[Black "Markoja, Boris"]
[Result "1/2-1/2"]
[ECO "C01"]
[WhiteElo "2279"]
[BlackElo "2453"]
[Annotator "ChessBase"]
[PlyCount "60"]
[EventDate "2021.09.18"]
[EventType "team-tourn"]
[EventCountry "MKD"]
[SourceTitle "playchess.com"]
[Source "ChessBase"]
[SourceQuality "1"]
[TimeControl "40/5400+30:1800+30"]

1. e4 {[%emt 0:00:12]} e6 {[%emt 0:00:07]} 2. d4 {[%emt 0:00:06]} d5 {[%emt 0:
00:04]} 3. exd5 {[%emt 0:01:06]} exd5 {[%emt 0:00:08]} 4. Bd3 {[%emt 0:00:07]}
Nc6 {[%emt 0:00:59]} 5. c3 {[%emt 0:00:10]} Bd6 {[%emt 0:01:34]} 6. Ne2 {
[%emt 0:01:00]} Qf6 {[%emt 0:01:30]} 7. Nd2 {[%emt 0:02:10]} Nge7 {[%emt 0:02:
05]} 8. O-O {[%emt 0:00:12]} Bf5 {[%emt 0:04:03]} 9. Nf3 {[%emt 0:01:44]} Bxd3
{[%emt 0:10:14]} 10. Qxd3 {[%emt 0:00:22]} h6 {[%emt 0:02:22]} 11. Ng3 {
[%emt 0:00:32]} O-O {[%emt 0:01:36]} 12. Re1 {[%emt 0:01:48]} Rfe8 {[%emt 0:04:
06]} 13. Bd2 {[%emt 0:01:36]} Qg6 {[%emt 0:06:35]} 14. Qxg6 {[%emt 0:01:17]}
Nxg6 {[%emt 0:03:12]} 15. Nf5 {[%emt 0:00:12]} Bf4 {[%emt 0:03:22]} 16. g3 {
[%emt 0:00:16]} Bxd2 {[%emt 0:00:12]} 17. Nxd2 {[%emt 0:00:07]} Nce7 {[%emt 0:
01:28]} 18. Nxe7+ {[%emt 0:00:27]} Rxe7 {[%emt 0:00:27]} 19. Rxe7 {[%emt 0:00:
11]} Nxe7 {[%emt 0:00:08]} 20. Re1 {[%emt 0:00:07]} Kf8 {[%emt 0:00:10]} 21.
Kf1 {[%emt 0:00:47]} Re8 {[%emt 0:00:05]} 22. Nf3 {[%emt 0:00:08]} Nc6 {
[%emt 0:00:13]} 23. Rxe8+ {[%emt 0:00:07]} Kxe8 {[%emt 0:00:03]} 24. Ke2 {
[%emt 0:00:06]} Ke7 {[%emt 0:00:06]} 25. Nd2 {[%emt 0:00:06]} Nd8 {[%emt 0:00:
12]} 26. Ke3 {[%emt 0:00:13]} c6 {[%emt 0:00:12]} 27. Nf3 {[%emt 0:00:12]} Ne6
{[%emt 0:00:09]} 28. Nd2 {[%emt 0:00:15]} Nc7 {[%emt 0:00:03]} 29. Nf3 {
[%emt 0:00:09]} Ne8 {[%emt 0:00:05]} 30. Nd2 {[%emt 0:00:07]} Nd6 {[%emt 0:00:
05]} 1/2-1/2